{"text_format":"1","workbook":"xlsx","n_sheets":9,"sheets":["السبت 1 يناير","الاحد 2 يناير","الاثنين 3 يناير","الثلاثاء 4 يناير","الاربعاء 5 يناير ","الخميس 6 يناير","الجمعة 7 يناير","السبت 8 يناير","الاحد 9 يناير"],"not_rendered":{"charts":0,"images":0,"macros":1,"external_links":0,"defined_names":0,"comments":0,"pivot_tables":0},"unopened":[],"bounds":{"document_bytes":16777216,"sheet_cells":100000,"rows_first":2000,"rows_last":500,"rows_between":2000,"halvings":0,"cell_chars":16384,"cell_head_chars":4096},"cells_cut":0,"cells_raw":0,"read":"whole","date_system":"1900"}

{"sheet":"السبت 1 يناير","index":0,"n_rows":23,"n_cols":11,"rows_kept":23,"cut":false,"hidden":false,"merged":[[0,3,1,4],[0,5,1,7],[3,8,5,9],[3,6,4,6],[3,0,3,2],[3,3,3,5]]}
[null,null,null,"رصيد افتتاحي"]
[]
[]
["مبيعات",null,null,"مصروفات",null,null,"رصيد",null,"صافي رصيد اليوم",null,{"$f":"SUM(G6:G23)","v":80}]
["المبلغ","الصنف","ملاحظات","المبلغ","الصنف","ملاحظات"]
[100,"بوكيه",null,20,"كهرباء",null,{"$f":"A6-D6","v":80}]
[null,null,null,null,null,null,0]
[null,null,null,null,null,null,0]
[null,null,null,null,null,null,0]
[null,null,null,null,null,null,0]
[null,null,null,null,null,null,0]
[null,null,null,null,null,null,0]
[null,null,null,null,null,null,0]
[null,null,null,null,null,null,0]
[null,null,null,null,null,null,{"$f":"A15-D15","v":0}]
[null,null,null,null,null,null,0]
[null,null,null,null,null,null,0]
[null,null,null,null,null,null,0]
[null,null,null,null,null,null,0]
[null,null,null,null,null,null,0]
[null,null,null,null,null,null,0]
[null,null,null,null,null,null,0]
[null,null,null,null,null,null,0]

{"sheet":"الاحد 2 يناير","index":1,"n_rows":23,"n_cols":11,"rows_kept":23,"cut":false,"hidden":false,"merged":[[3,6,4,6],[3,8,5,9],[0,3,1,4],[0,5,1,7],[3,0,3,2],[3,3,3,5]]}
[null,null,null,"رصيد افتتاحي",null,{"$f":"'السبت 1 يناير'!K4","v":80}]
[]
[]
["مبيعات",null,null,"مصروفات",null,null,"رصيد",null,"صافي رصيد اليوم",null,{"$f":"SUM(G6:G23)","v":190}]
["المبلغ","الصنف","ملاحظات","المبلغ","الصنف","ملاحظات"]
[200,"ورد",null,10,"نظافة",null,{"$f":"A6-D6","v":190}]
[null,null,null,null,null,null,0]
[null,null,null,null,null,null,0,null,"اليوم + ماقبله",null,{"$f":"K4+F1","v":270}]
[null,null,null,null,null,null,0]
[null,null,null,null,null,null,0]
[null,null,null,null,null,null,0]
[null,null,null,null,null,null,0]
[null,null,null,null,null,null,0]
[null,null,null,null,null,null,0]
[null,null,null,null,null,null,0]
[null,null,null,null,null,null,0]
[null,null,null,null,null,null,0]
[null,null,null,null,null,null,0]
[null,null,null,null,null,null,0]
[null,null,null,null,null,null,0]
[null,null,null,null,null,null,0]
[null,null,null,null,null,null,0]
[null,null,null,null,null,null,0]

{"sheet":"الاثنين 3 يناير","index":2,"n_rows":23,"n_cols":11,"rows_kept":23,"cut":false,"hidden":false,"merged":[[3,8,5,9],[0,3,1,4],[0,5,1,7],[3,0,3,2],[3,3,3,5],[3,6,4,6]]}
[null,null,null,"رصيد افتتاحي",null,{"$f":"'الاحد 2 يناير'!K8","v":270}]
[]
[]
["مبيعات",null,null,"مصروفات",null,null,"رصيد",null,"صافي رصيد اليوم",null,{"$f":"SUM(G6:G23)","v":0}]
["المبلغ","الصنف","ملاحظات","المبلغ","الصنف","ملاحظات"]
[null,null,null,null,null,null,{"$f":"A6-D6","v":0}]
[null,null,null,null,null,null,0]
[null,null,null,null,null,null,0,null,"اليوم + ماقبله",null,{"$f":"K4+F1","v":270}]
[null,null,null,null,null,null,0]
[null,null,null,null,null,null,0]
[null,null,null,null,null,null,0]
[null,null,null,null,null,null,0]
[null,null,null,null,null,null,0]
[null,null,null,null,null,null,0]
[null,null,null,null,null,null,0]
[null,null,null,null,null,null,0]
[null,null,null,null,null,null,0]
[null,null,null,null,null,null,0]
[null,null,null,null,null,null,0]
[null,null,null,null,null,null,0]
[null,null,null,null,null,null,0]
[null,null,null,null,null,null,0]
[null,null,null,null,null,null,0]

{"sheet":"الثلاثاء 4 يناير","index":3,"n_rows":23,"n_cols":11,"rows_kept":23,"cut":false,"hidden":false,"merged":[[3,8,5,9],[0,3,1,4],[0,5,1,7],[3,0,3,2],[3,3,3,5],[3,6,4,6]]}
[null,null,null,"رصيد افتتاحي",null,{"$f":"'الاثنين 3 يناير'!K8","v":270}]
[]
[]
["مبيعات",null,null,"مصروفات",null,null,"رصيد",null,"صافي رصيد اليوم",null,{"$f":"SUM(G6:G23)","v":0}]
["المبلغ","الصنف","ملاحظات","المبلغ","الصنف","ملاحظات"]
[null,null,null,null,null,null,{"$f":"A6-D6","v":0}]
[null,null,null,null,null,null,0]
[null,null,null,null,null,null,0,null,"اليوم + ماقبله",null,{"$f":"K4+F1","v":270}]
[null,null,null,null,null,null,0]
[null,null,null,null,null,null,0]
[null,null,null,null,null,null,0]
[null,null,null,null,null,null,0]
[null,null,null,null,null,null,0]
[null,null,null,null,null,null,0]
[null,null,null,null,null,null,0]
[null,null,null,null,null,null,0]
[null,null,null,null,null,null,0]
[null,null,null,null,null,null,0]
[null,null,null,null,null,null,0]
[null,null,null,null,null,null,0]
[null,null,null,null,null,null,0]
[null,null,null,null,null,null,0]
[null,null,null,null,null,null,0]

{"sheet":"الاربعاء 5 يناير ","index":4,"n_rows":23,"n_cols":11,"rows_kept":23,"cut":false,"hidden":false,"merged":[[3,8,5,9],[0,3,1,4],[0,5,1,7],[3,0,3,2],[3,3,3,5],[3,6,4,6]]}
[null,null,null,"رصيد افتتاحي",null,{"$f":"'الثلاثاء 4 يناير'!K8","v":270}]
[]
[]
["مبيعات",null,null,"مصروفات",null,null,"رصيد",null,"صافي رصيد اليوم",null,{"$f":"SUM(G6:G23)","v":0}]
["المبلغ","الصنف","ملاحظات","المبلغ","الصنف","ملاحظات"]
[null,null,null,null,null,null,{"$f":"A6-D6","v":0}]
[null,null,null,null,null,null,0]
[null,null,null,null,null,null,0,null,"اليوم + ماقبله",null,{"$f":"K4+F1","v":270}]
[null,null,null,null,null,null,0]
[null,null,null,null,null,null,0]
[null,null,null,null,null,null,0]
[null,null,null,null,null,null,0]
[null,null,null,null,null,null,0]
[null,null,null,null,null,null,0]
[null,null,null,null,null,null,0]
[null,null,null,null,null,null,0]
[null,null,null,null,null,null,0]
[null,null,null,null,null,null,0]
[null,null,null,null,null,null,0]
[null,null,null,null,null,null,0]
[null,null,null,null,null,null,0]
[null,null,null,null,null,null,0]
[null,null,null,null,null,null,0]

{"sheet":"الخميس 6 يناير","index":5,"n_rows":23,"n_cols":11,"rows_kept":23,"cut":false,"hidden":false,"merged":[[3,8,5,9],[0,3,1,4],[0,5,1,7],[3,0,3,2],[3,3,3,5],[3,6,4,6]]}
[null,null,null,"رصيد افتتاحي",null,{"$f":"'الاربعاء 5 يناير '!K8","v":270}]
[]
[]
["مبيعات",null,null,"مصروفات",null,null,"رصيد",null,"صافي رصيد اليوم",null,{"$f":"SUM(G6:G23)","v":0}]
["المبلغ","الصنف","ملاحظات","المبلغ","الصنف","ملاحظات"]
[null,null,null,null,null,null,{"$f":"A6-D6","v":0}]
[null,null,null,null,null,null,0]
[null,null,null,null,null,null,0,null,"اليوم + ماقبله",null,{"$f":"K4+F1","v":270}]
[null,null,null,null,null,null,0]
[null,null,null,null,null,null,0]
[null,null,null,null,null,null,0]
[null,null,null,null,null,null,0]
[null,null,null,null,null,null,0]
[null,null,null,null,null,null,0]
[null,null,null,null,null,null,0]
[null,null,null,null,null,null,0]
[null,null,null,null,null,null,0]
[null,null,null,null,null,null,0]
[null,null,null,null,null,null,0]
[null,null,null,null,null,null,0]
[null,null,null,null,null,null,0]
[null,null,null,null,null,null,0]
[null,null,null,null,null,null,0]

{"sheet":"الجمعة 7 يناير","index":6,"n_rows":23,"n_cols":11,"rows_kept":23,"cut":false,"hidden":false,"merged":[[3,8,5,9],[0,3,1,4],[0,5,1,7],[3,0,3,2],[3,3,3,5],[3,6,4,6]]}
[null,null,null,"رصيد افتتاحي",null,{"$f":"'الخميس 6 يناير'!K8","v":270}]
[]
[]
["مبيعات",null,null,"مصروفات",null,null,"رصيد",null,"صافي رصيد اليوم",null,{"$f":"SUM(G6:G23)","v":0}]
["المبلغ","الصنف","ملاحظات","المبلغ","الصنف","ملاحظات"]
[null,null,null,null,null,null,{"$f":"A6-D6","v":0}]
[null,null,null,null,null,null,0]
[null,null,null,null,null,null,0,null,"اليوم + ماقبله",null,{"$f":"K4+F1","v":270}]
[null,null,null,null,null,null,0]
[null,null,null,null,null,null,0]
[null,null,null,null,null,null,0]
[null,null,null,null,null,null,0]
[null,null,null,null,null,null,0]
[null,null,null,null,null,null,0]
[null,null,null,null,null,null,0]
[null,null,null,null,null,null,0]
[null,null,null,null,null,null,0]
[null,null,null,null,null,null,0]
[null,null,null,null,null,null,0]
[null,null,null,null,null,null,0]
[null,null,null,null,null,null,0]
[null,null,null,null,null,null,0]
[null,null,null,null,null,null,0]

{"sheet":"السبت 8 يناير","index":7,"n_rows":23,"n_cols":11,"rows_kept":23,"cut":false,"hidden":false,"merged":[[3,8,5,9],[0,3,1,4],[0,5,1,7],[3,0,3,2],[3,3,3,5],[3,6,4,6]]}
[null,null,null,"رصيد افتتاحي",null,{"$f":"'الجمعة 7 يناير'!K8","v":270}]
[]
[]
["مبيعات",null,null,"مصروفات",null,null,"رصيد",null,"صافي رصيد اليوم",null,{"$f":"SUM(G6:G23)","v":0}]
["المبلغ","الصنف","ملاحظات","المبلغ","الصنف","ملاحظات"]
[null,null,null,null,null,null,{"$f":"A6-D6","v":0}]
[null,null,null,null,null,null,0]
[null,null,null,null,null,null,0,null,"اليوم + ماقبله",null,{"$f":"K4+F1","v":270}]
[null,null,null,null,null,null,0]
[null,null,null,null,null,null,0]
[null,null,null,null,null,null,0]
[null,null,null,null,null,null,0]
[null,null,null,null,null,null,0]
[null,null,null,null,null,null,0]
[null,null,null,null,null,null,0]
[null,null,null,null,null,null,0]
[null,null,null,null,null,null,0]
[null,null,null,null,null,null,0]
[null,null,null,null,null,null,0]
[null,null,null,null,null,null,0]
[null,null,null,null,null,null,0]
[null,null,null,null,null,null,0]
[null,null,null,null,null,null,0]

{"sheet":"الاحد 9 يناير","index":8,"n_rows":23,"n_cols":11,"rows_kept":23,"cut":false,"hidden":false,"merged":[[3,8,5,9],[0,3,1,4],[0,5,1,7],[3,0,3,2],[3,3,3,5],[3,6,4,6]]}
[null,null,null,"رصيد افتتاحي",null,{"$f":"'السبت 8 يناير'!K8","v":270}]
[]
[]
["مبيعات",null,null,"مصروفات",null,null,"رصيد",null,"صافي رصيد اليوم",null,{"$f":"SUM(G6:G23)","v":0}]
["المبلغ","الصنف","ملاحظات","المبلغ","الصنف","ملاحظات"]
[null,null,null,null,null,null,{"$f":"A6-D6","v":0}]
[null,null,null,null,null,null,0]
[null,null,null,null,null,null,0,null,"اليوم + ماقبله",null,{"$f":"K4+F1","v":270}]
[null,null,null,null,null,null,0]
[null,null,null,null,null,null,0]
[null,null,null,null,null,null,0]
[null,null,null,null,null,null,0]
[null,null,null,null,null,null,0]
[null,null,null,null,null,null,0]
[null,null,null,null,null,null,0]
[null,null,null,null,null,null,0]
[null,null,null,null,null,null,0]
[null,null,null,null,null,null,0]
[null,null,null,null,null,null,0]
[null,null,null,null,null,null,0]
[null,null,null,null,null,null,0]
[null,null,null,null,null,null,0]
[null,null,null,null,null,null,0]